fUST/lending_fUST_20250220
["ID","MTS","AMOUNT","RATE_DAILY","PERIOD"]
[353708190,1739994667909,-2823.425337,0.00015424,2]
[353708191,1739994667919,-1264.48,0.00015424,2]
[353708192,1739994667928,-2363.05,0.00015424,2]
[353708193,1739994667941,-1079.67,0.00015424,2]
[353708194,1739994668013,-6370.63,0.00015424,2]
[353708195,1739994668023,-1311.75,0.00015424,2]
[353708196,1739994668033,-934.61,0.00015424,2]
[353708197,1739994668043,-2409.06,0.00015424,2]
[353708198,1739994668052,-1572.98,0.00015424,2]
[353708199,1739994668062,-364.184848,0.00015424,2]
[353708200,1739994668071,-507.24,0.00015424,2]
[353708201,1739994668080,-9076.95,0.00015424,2]
[353708202,1739994668089,-1313.63,0.00015424,2]
[353708203,1739994668099,-364.184848,0.00015424,2]
[353708204,1739994668109,-1949.7,0.00015424,2]
[353708205,1739994668119,-500.0,0.00015424,2]
[353708206,1739994668129,-708.48,0.00015424,2]
[353708207,1739994668138,-872.8,0.00015424,2]
[353708208,1739994668148,-3593.72,0.00015424,2]
[353708209,1739994668158,-151.0,0.000155,2]
[353708210,1739994668168,-801.74,0.00015506,2]
[353708211,1739994668178,-534.19,0.00015506,2]
[353708212,1739994668192,-778.36,0.00015506,2]
[353708213,1739994668202,-273.5,0.00015506,2]
[353708214,1739994668211,-761.72,0.00015506,2]
[353708215,1739994668222,-779.99,0.00015506,2]
[353708216,1739994668232,-1062.816669,0.00015506,2]
[353708217,1739994668242,-1062.816669,0.00015506,2]
[353708219,1739994668251,-434.74597,0.00015506,2]
[353708220,1739994668263,-434.74597,0.00015506,2]
[353708221,1739994668273,-775.73,0.00015506,2]
[353708222,1739994668283,-274.19,0.00015506,2]
[353708223,1739994668292,-8155.499006,0.00015506,2]
[353708224,1739994668303,-8155.499006,0.00015506,2]
[353708225,1739994668312,-539.86,0.00015506,2]
[353708226,1739994668321,-1171.45,0.00015506,2]
[353708227,1739994668331,-2720.91,0.00015506,2]
[353708228,1739994668341,-1094.49,0.00015506,2]
[353708229,1739994668354,-830.75,0.00015506,2]
[353708230,1739994668365,-1198.49,0.00015506,2]
[353708231,1739994668375,-692.65,0.00015506,2]
[353708232,1739994668384,-3116.07,0.00015506,2]
[353708233,1739994668393,-9751.97,0.00015506,2]
[353708234,1739994668403,-799.24,0.00015506,2]
[353708235,1739994668412,-1140.83,0.00015506,2]
[353708236,1739994668422,-1175.9,0.00015506,2]
[353708237,1739994668432,-526.28,0.00015506,2]
[353708238,1739994668446,-892.99,0.00015506,2]
[353708239,1739994668455,-2159.61,0.00015506,2]
[353708240,1739994668465,-1049.066856,0.00015506,2]
[353708241,1739994668475,-1049.066856,0.00015506,2]
[353708242,1739994668484,-1264.48,0.00015506,2]
[353708243,1739994668494,-2363.05,0.00015506,2]
[353708244,1739994668505,-1079.67,0.00015506,2]
[353708245,1739994668514,-6370.63,0.00015506,2]
[353708246,1739994668523,-1311.75,0.00015506,2]
[353708247,1739994668533,-934.61,0.00015506,2]
[353708248,1739994668544,-2409.06,0.00015506,2]
[353708249,1739994668554,-1572.98,0.00015506,2]
[353708250,1739994668564,-507.24,0.00015506,2]
[353708251,1739994668573,-9076.95,0.00015506,2]
[353708252,1739994668583,-1313.63,0.00015506,2]
[353708253,1739994668592,-1949.7,0.00015506,2]
[353708254,1739994668601,-500.0,0.00015506,2]
[353708255,1739994668611,-708.48,0.00015506,2]
[353708256,1739994668620,-872.8,0.00015506,2]
[353708257,1739994668631,-3593.72,0.00015506,2]
[353708258,1739994668642,-801.82055816,0.00015589,2]
[353708259,1739994668651,-534.27,0.00015589,2]
[353708260,1739994668664,-778.40266413,0.00015589,2]
[353708261,1739994668673,-761.85,0.00015589,2]
[353708262,1739994668683,-780.18,0.00015589,2]
[353708263,1739994668695,-775.81398936,0.00015589,2]
[353708264,1739994668704,-540.09677832,0.00015589,2]
[353708265,1739994668714,-1171.57,0.00015589,2]
[353708266,1739994668723,-2721.08048065,0.00015589,2]
[353708267,1739994668733,-1094.71188345,0.00015589,2]
[353708268,1739994668744,-830.76,0.00015589,2]
[353708269,1739994668753,-1198.58642689,0.00015589,2]
[353708270,1739994668763,-692.8257394,0.00015589,2]
[353708271,1739994668772,-3116.23397874,0.00015589,2]
[353708272,1739994668781,-9752.07794369,0.00015589,2]
[353708273,1739994668790,-799.26641406,0.00015589,2]
[353708274,1739994668799,-1140.84556257,0.00015589,2]
[353708275,1739994668808,-1175.92201952,0.00015589,2]
[353708276,1739994668817,-526.3,0.00015589,2]
[353708277,1739994668826,-893.00336587,0.00015589,2]
[353708278,1739994668837,-2159.63474119,0.00015589,2]
[353708279,1739994668847,-1264.68799085,0.00015589,2]
[353708280,1739994668856,-2363.28110362,0.00015589,2]
[353708281,1739994668865,-1079.82706573,0.00015589,2]
[353708282,1739994668875,-6370.67155046,0.00015589,2]
[353708283,1739994668885,-1311.88244067,0.00015589,2]
[353708284,1739994668894,-934.69932101,0.00015589,2]
[353708285,1739994668904,-2409.28225558,0.00015589,2]
[353708286,1739994668913,-1573.02663562,0.00015589,2]
[353708287,1739994668923,-507.2519771,0.00015589,2]
[353708288,1739994668932,-9077.05336621,0.00015589,2]
[353708289,1739994668944,-1313.66,0.00015589,2]
[353708290,1739994668953,-1949.93947542,0.00015589,2]
[353708291,1739994668963,-708.69546464,0.00015589,2]
[353708292,1739994668972,-872.84100684,0.00015589,2]
[353708293,1739994668982,-3593.82070958,0.00015589,2]
[353708294,1739994668991,-465.00986147,0.0001574,2]
[353708295,1739994669000,-191.306499,0.00015775,2]
[353708296,1739994669069,-700.0,0.00015808,2]
[353708297,1739994669079,-151.0,0.000159,2]
[353708298,1739994669087,-453.73867444,0.00015968,2]
[353708299,1739994669097,-647558.53001555,0.00016,2]
[353708300,1739994669205,-8259.07209351,0.00016,2]
[353708301,1739994669219,-21874.72733395,0.00016,2]
[353708302,1739994669230,-3502.93772859,0.00016,2]
[353708303,1739994669355,-500.0,0.00013698,2]
[353708304,1739994669364,-377.93769502,0.00013698,2]
[353708305,1739994669374,-41.51230472,0.00013698,2]
[353708306,1739994669386,-458.48769528,0.00013698,2]
[353708307,1739994669395,-193.26635515,0.00013698,2]
[353708308,1739994669407,-306.73364485,0.00013698,2]
[353708309,1739994669417,-500.0,0.0001378,2]
[353708310,1739994669427,-500.0,0.0001378,2]
[353708311,1739994669451,-500.0,0.00013863,2]
[353708312,1739994669472,-500.0,0.00013945,2]
[353708313,1739994669493,-626.98373473,0.00014027,2]
[353708314,1739994669514,-3776.89,0.00014356,2]
[353708315,1739994669534,-3776.89,0.00014438,2]
[353708316,1739994669553,-3776.89,0.0001452,2]
[353708317,1739994669570,-3776.89,0.00014602,2]
[353708318,1739994669585,-3776.89,0.00014684,2]
[353708319,1739994669604,-3776.89,0.00014767,2]
[353708320,1739994669627,-3776.89,0.00014849,2]
[353708321,1739994669642,-3776.89,0.00014931,2]
[353708322,1739994669662,-3776.89,0.00015013,2]
[353708323,1739994669679,-695159.19355031,0.00016,2]
[353708324,1739994669696,-1183.40155707,0.00016,2]
[353708325,1739994669710,-499.0,0.00016164,2]
[353708326,1739994669725,-151.0,0.000162,2]
[353708327,1739994669742,-151.0,0.000162,2]
[353708328,1739994669757,-151.0,0.000162,2]
[353708329,1739994669771,-279.485742,0.000162,2]
[353708330,1739994669785,-279.485742,0.000162,2]
[353708331,1739994669800,-1253.040712,0.000162,2]
[353708332,1739994669815,-1253.040712,0.000162,2]
[353708333,1739994669830,-4752.4458,0.000162,2]
[353708334,1739994669843,-4752.4458,0.000162,2]
[353708336,1739994669853,-749.756382,0.000162,2]
[353708337,1739994669863,-749.756382,0.000162,2]
[353708338,1739994669881,-151.0,0.000162,2]
[353708339,1739994669891,-151.0,0.000162,2]
[353708340,1739994669901,-672.359079,0.000162,2]
[353708341,1739994669910,-672.359079,0.000162,2]
[353708342,1739994669920,-1167.085957,0.000162,2]
[353708343,1739994669930,-1167.085957,0.000162,2]
[353708344,1739994669941,-151.0,0.000163,2]
[353708345,1739994669950,-500.0,0.00016438,2]
[353708346,1739994669960,-500.0,0.00016438,2]
[353708347,1739994669970,-500.0,0.00016438,2]
[353708348,1739994669980,-500.0,0.00016438,2]
[353708349,1739994669988,-500.0,0.00016438,2]
[353708350,1739994669999,-500.0,0.00016438,2]
[353708351,1739994670009,-500.0,0.00016438,2]
[353708352,1739994670020,-500.0,0.00016438,2]
[353708353,1739994670030,-500.0,0.00016438,2]
[353708354,1739994670039,-500.0,0.00016438,2]
[353708355,1739994670049,-500.0,0.00016438,2]
[353708356,1739994670058,-500.0,0.00016438,2]
[353708357,1739994670068,-500.0,0.00016438,2]
[353708358,1739994670274,-500.0,0.00016438,2]
[353708359,1739994670286,-500.0,0.00016438,2]
[353708360,1739994670296,-500.0,0.00016438,2]
[353708361,1739994670306,-500.0,0.00016438,2]
[353708362,1739994670317,-500.0,0.00016438,2]
[353708363,1739994670326,-500.0,0.00016438,2]
[353708364,1739994670336,-500.0,0.00016438,2]
[353708365,1739994670345,-500.0,0.00016438,2]
[353708366,1739994670355,-500.0,0.00016438,2]
[353708367,1739994670364,-500.0,0.00016438,2]
[353708368,1739994670374,-500.0,0.00016438,2]
[353708369,1739994670384,-500.0,0.00016438,2]
[353708370,1739994670393,-603.554545,0.00016438,2]
[353708371,1739994670403,-691.309199,0.00016438,2]
[353708372,1739994670412,-691.309199,0.00016438,2]
[353708373,1739994670422,-1000.0,0.00016438,2]
[353708374,1739994670431,-1000.0,0.00016438,2]
[353708375,1739994670441,-397.53754396,0.00016438,2]
[353708376,1739994670451,-12000.0,0.00016438,2]
[353708377,1739994670461,-1000.0,0.0001652,2]
[353708378,1739994670471,-2000.0,0.0001652,2]
[353708379,1739994670481,-465.00049307,0.00016527,2]
[353708380,1739994670491,-1501.66515834,0.0001662,2]
[353708381,1739994670501,-557.1188801,0.00016799,2]
[353708382,1739994670512,-557.1188801,0.00016799,2]
[353708383,1739994670522,-557.1188801,0.00016799,2]
[353708384,1739994670532,-557.1188801,0.00016799,2]
[353708385,1739994670541,-557.1188801,0.00016799,2]
[353708386,1739994670552,-557.1188801,0.00016799,2]
[353708387,1739994670562,-151.0,0.000168,2]
[353708388,1739994670572,-823.0,0.00016806,2]
[353708389,1739994670582,-504.28825782,0.00016966,2]
[353708390,1739994670591,-500.0,0.00017,7]
[353708391,1739994670600,-500.0,0.00017,7]
[353708392,1739994670610,-500.0,0.00017,7]
[353708393,1739994670619,-500.0,0.00017,7]
[353708394,1739994670629,-500.0,0.00017,7]
[353708395,1739994670638,-500.0,0.00017,7]
[353708396,1739994670648,-500.0,0.00017,7]
[353708397,1739994670659,-500.0,0.00017,7]
[353708398,1739994670670,-500.0,0.00017,7]
[353708399,1739994670679,-566.69,0.00017,7]
[353708400,1739994670689,-831.298479,0.00017123,2]
[353708401,1739994670699,-700.0,0.00017178,2]
[353708402,1739994670710,-151.0,0.000172,2]
[353708403,1739994670719,-600.0,0.0001728,2]
[353708404,1739994670729,-168.73426959,0.0001737,2]
[353708405,1739994670740,-1000.0,0.00017419,2]
[353708406,1739994670750,-600.0,0.0001746,2]
[353708407,1739994670760,-263.376,0.00017489,2]
[353708408,1739994670770,-545.771,0.00017489,2]
[353708409,1739994670780,-1971.0,0.00017489,2]
[353708410,1739994670790,-2288.0,0.00017489,2]
[353708411,1739994670800,-150.0,0.00017489,2]
[353708412,1739994670810,-150.122,0.00017489,2]
[353708413,1739994670820,-431.93093578,0.00017534,2]
[353708414,1739994670831,-13275.53870192,0.00017543,2]
[353708415,1739994670841,-1000.0,0.00017554,2]
[353708416,1739994670850,-396.82560636,0.00017559,2]
[353708417,1739994670860,-1000.0,0.00017581,2]
[353708418,1739994670870,-151.0,0.000176,2]
[353708419,1739994670880,-1000.0,0.000176,2]
[353708420,1739994670890,-2500.0,0.0001761,2]
[353708421,1739994670899,-1000.0,0.00017619,2]
[353708422,1739994670908,-2500.0,0.00017619,2]
[353708423,1739994670918,-6426.945,0.00017621,2]
[353708424,1739994670928,-647.8449573,0.00017621,2]
[353708425,1739994670939,-2500.0,0.00017628,2]
[353708426,1739994670949,-2500.0,0.00017637,2]
[353708427,1739994670958,-2843.1019312,0.00017639,2]
[353708428,1739994670968,-600.0,0.0001764,2]
[353708429,1739994670979,-2500.0,0.00017646,2]
[353708430,1739994670988,-557.1188801,0.00017649,2]
[353708431,1739994670998,-557.1188801,0.00017649,2]
[353708432,1739994671008,-557.1188801,0.00017649,2]
[353708433,1739994671018,-557.1188801,0.00017649,2]
[353708434,1739994671028,-557.1188801,0.00017649,2]
[353708435,1739994671039,-557.1188801,0.00017649,2]
[353708436,1739994671049,-557.1188801,0.00017649,2]
[353708437,1739994671060,-557.1188801,0.00017649,2]
[353708438,1739994671070,-557.1188801,0.00017649,2]
[353708439,1739994671081,-557.1188801,0.00017649,2]
[353708440,1739994671091,-557.1188801,0.00017649,2]
[353708441,1739994671101,-557.1188801,0.00017649,2]
[353708442,1739994671111,-557.1188801,0.00017649,2]
[353708443,1739994671120,-557.1188801,0.00017649,2]
[353708444,1739994671130,-557.1188801,0.00017649,2]
[353708445,1739994671140,-557.1188801,0.00017649,2]
[353708446,1739994671150,-557.1188801,0.00017649,2]
[353708447,1739994671159,-557.1188801,0.00017649,2]
[353708448,1739994671169,-557.1188801,0.00017649,2]
[353708449,1739994671178,-557.1188801,0.00017649,2]
[353708450,1739994671190,-1114.2377602,0.00017649,2]
[353708451,1739994671199,-2500.0,0.00017654,2]
[353708452,1739994671209,-2500.0,0.00017663,2]
[353708453,1739994671218,-2500.0,0.00017672,2]
[353708454,1739994671228,-1000.0,0.000177,2]
[353708455,1739994671238,-1000.0,0.0001772,2]
[353708456,1739994671248,-1000.0,0.00017733,2]
[353708457,1739994671257,-1000.0,0.000178,2]
[353708458,1739994671267,-1000.0,0.00017814,2]
[353708459,1739994671277,-2957.04462372,0.0001782,2]
[353708460,1739994671287,-600.0,0.0001782,2]
[353708461,1739994671297,-316.0,0.0001789,2]
[353708462,1739994671307,-347.7143422,0.00017934,2]
[353708463,1739994671317,-2200.0,0.00017962,2]
[353708464,1739994671326,-5000.0,0.00017981,2]
[353708465,1739994671335,-5000.0,0.00017981,2]
[353708466,1739994671345,-5000.0,0.00017981,2]
[353708467,1739994671355,-5000.0,0.00017981,2]
[353708468,1739994671364,-5000.0,0.00017981,2]
[353708469,1739994671375,-206.916301,0.00017981,2]
[353708470,1739994671385,-206.916301,0.00017981,2]
[353708471,1739994671395,-151.0,0.00017998,2]
[353708472,1739994671405,-427.85438938,0.00017998,2]
[353708473,1739994671415,-160.0,0.00017999,2]
[353708474,1739994671425,-28333.07632565,0.00018,5]
[353708475,1739994671435,-7746.1346775,0.00018,5]
[353708476,1739994671445,-292923.78981549,0.00018,15]
[353708477,1739994671455,-2000.0,0.00018,2]
[353708478,1739994671465,-500.0,0.00018,2]
[353708479,1739994671474,-500.0,0.00018,2]
[353708480,1739994671483,-500.0,0.00018,2]
[353708481,1739994671494,-500.0,0.00018,2]
[353708482,1739994671503,-500.0,0.00018,2]
[353708483,1739994671513,-500.0,0.00018,2]
[353708484,1739994671522,-500.0,0.00018,2]
[353708485,1739994671532,-500.0,0.00018,2]
[353708486,1739994671542,-500.0,0.00018,2]
[353708487,1739994671552,-501.17448677,0.00018,2]
[353708488,1739994671562,-500.0,0.00018,2]
[353708489,1739994671572,-500.0,0.00018,2]
[353708490,1739994671583,-500.0,0.00018,2]
[353708491,1739994671593,-500.0,0.00018,2]
[353708492,1739994671603,-500.0,0.00018,2]
[353708493,1739994671613,-500.0,0.00018,2]
[353708494,1739994671622,-500.0,0.00018,2]
[353708495,1739994671632,-500.0,0.00018,2]
[353708496,1739994671641,-266.0,0.00018,2]
[353708497,1739994671652,-26789.79,0.00018,2]
[353708498,1739994671665,-189.25,0.00018,2]
[353708499,1739994671674,-2170938.00196955,0.00018,15]
[353708500,1739994671887,-500.0,0.00013698,2]
[353708501,1739994671897,-500.0,0.00013698,2]
[353708502,1739994671907,-500.0,0.0001378,2]
[353708503,1739994671917,-500.0,0.00013863,2]
[353708504,1739994671927,-500.0,0.00013945,2]
[353708505,1739994671938,-500.0,0.00014027,2]
[353708506,1739994671948,-500.0,0.00014109,2]
[353708507,1739994671961,-500.0,0.00014191,2]
[353708508,1739994672018,-3261.82826701,0.00015095,2]
[353708509,1739994672163,-515.06173299,0.00015095,2]
[353708510,1739994672247,-3776.89,0.00015178,2]
[353708511,1739994672373,-3776.89,0.0001526,2]
[353708512,1739994672451,-3776.89,0.00015342,2]
[353708513,1739994672591,-3776.89,0.00015424,2]
[353708514,1739994672669,-3776.89,0.00015506,2]
[353708515,1739994672787,-3777.09445587,0.00015589,2]
[353708516,1739994672903,-557.1188801,0.00016799,2]
[353708517,1739994673051,-396.0,0.00017489,2]
[353708518,1739994673176,-1090773.83472892,0.00018,15]
[353708519,1739994673206,-34328.42425219,0.00018,15]
[353708520,1739994673218,-1030.886,0.00018,15]
[353708521,1739994673229,-4795.11,0.00018,15]
[353708522,1739994673245,-3990.73422229,0.00018,15]
[353708523,1739994673412,-500.0,0.00013698,2]
[353708524,1739994673423,-424.13738773,0.00013698,2]
[353708525,1739994673432,-500.0,0.00013698,2]
[353708526,1739994673443,-500.0,0.00013698,2]
[353708527,1739994673453,-500.0,0.00013698,2]
[353708528,1739994673463,-500.0,0.0001378,2]
[353708529,1739994673473,-500.0,0.0001378,2]
[353708530,1739994673482,-500.0,0.0001378,2]
[353708531,1739994673492,-500.0,0.0001378,2]
[353708532,1739994673502,-500.0,0.00013863,2]
[353708533,1739994673512,-500.0,0.00013863,2]
[353708534,1739994673522,-500.0,0.00013945,2]
[353708535,1739994673532,-500.0,0.00014273,2]
[353708536,1739994673542,-500.0,0.00014356,2]
[353708537,1739994673553,-54400.86255238,0.00018,15]
[353708538,1739994673565,-15885.91853821,0.00018,15]
[353708539,1739994673577,-9785.2,0.00018,15]
[353708540,1739994673592,-387.91810094,0.00018,15]
[353708541,1739994673604,-30489.07639212,0.00018,15]
[353708542,1739994673617,-59455.221178,0.00018,15]
[353708543,1739994675321,191.620493,9.041e-05,2]
[353708595,1739995818733,182.039468,9.041e-05,2]
[353708673,1739995832726,-300.0,0.00012698,2]
[353708675,1739995832736,-24900.0,0.00012699,2]
[353708677,1739995832745,-600.0,0.00013068,2]
[353708679,1739995832755,-167.17528665,0.00013594,2]
[353708681,1739995832764,-165.44832829,0.00013679,2]
[353708683,1739995832774,-610.12135966,0.00013693,2]
[353708685,1739995832784,-500.0,0.00013693,2]
[353708687,1739995832793,-500.0,0.00013693,2]
[353708689,1739995832803,-500.0,0.00013693,2]
[353708691,1739995832812,-500.0,0.00013693,2]
[353708693,1739995832821,-500.0,0.00013693,2]
[353708695,1739995832831,-500.0,0.00013693,2]
[353708697,1739995832840,-500.0,0.00013693,2]
[353708699,1739995832849,-500.0,0.00013693,2]
[353708701,1739995832859,-500.0,0.00013693,2]
[353708703,1739995832868,-343.76146803,0.00013693,2]
[353708705,1739995832878,-500.0,0.00013693,2]
[353708707,1739995832887,-500.0,0.00013693,2]
[353708709,1739995832897,-205.64088164,0.00013697,2]
[353708712,1739995832909,-500.0,0.00013697,2]
[353708714,1739995832920,-258.44220639,0.00013697,2]
[353708716,1739995832929,-500.0,0.00013697,2]
[353708718,1739995832939,-500.0,0.00013698,2]
[353708720,1739995832948,-500.0,0.00013698,2]
[353708722,1739995832958,-500.0,0.00013698,2]
[353708724,1739995832967,-500.0,0.00013698,2]
[353708726,1739995832977,-500.0,0.00013698,2]
[353708728,1739995832987,-500.0,0.00013698,2]
[353708730,1739995832996,-500.0,0.00013698,2]
[353708732,1739995833006,-500.0,0.00013698,2]
[353708734,1739995833016,-500.0,0.00013698,2]
[353708736,1739995833026,-500.0,0.00013698,2]
[353708738,1739995833036,-500.0,0.00013698,2]
[353708740,1739995833046,-500.0,0.00013698,2]
[353708742,1739995833056,-510.14037732,0.00013698,2]
[353708744,1739995833066,-349.66117496,0.00013698,2]
[353708746,1739995833079,-500.0,0.00013698,2]
[353708748,1739995833090,-614.22994079,0.00013698,2]
[353708750,1739995833100,-500.0,0.00013698,2]
[353708752,1739995833111,-505.80435576,0.00013698,2]
[353708755,1739995833122,-500.0,0.00013698,2]
[353708757,1739995833134,-500.0,0.00013698,2]
[353708759,1739995833144,-500.0,0.00013698,2]
[353708761,1739995833156,-500.0,0.00013698,2]
[353708763,1739995833167,-500.0,0.00013698,2]
[353708765,1739995833177,-500.0,0.00013698,2]
[353708767,1739995833187,-500.0,0.00013698,2]
[353708769,1739995833197,-500.0,0.00013698,2]
[353708771,1739995833208,-500.0,0.00013698,2]
[353708773,1739995833218,-500.0,0.00013698,2]
[353708775,1739995833228,-500.0,0.00013698,2]
[353708777,1739995833238,-500.0,0.00013698,2]
[353708779,1739995833248,-500.0,0.00013698,2]
[353708782,1739995833258,-500.0,0.00013698,2]
[353708784,1739995833269,-500.0,0.00013698,2]
[353708786,1739995833278,-500.0,0.00013698,2]
[353708788,1739995833288,-500.0,0.00013698,2]
[353708790,1739995833298,-500.0,0.00013698,2]
[353708792,1739995833307,-500.0,0.00013698,2]
[353708794,1739995833316,-500.0,0.00013698,2]
[353708796,1739995833326,-500.0,0.00013698,2]
[353708798,1739995833335,-500.0,0.00013698,2]
[353708800,1739995833344,-500.48680402,0.00013698,2]
[353708802,1739995833354,-500.0,0.00013698,2]
[353708804,1739995833364,-500.0,0.00013698,2]
[353708806,1739995833374,-500.0,0.00013698,2]
[353708808,1739995833383,-500.0,0.00013698,2]
[353708810,1739995833393,-500.0,0.00013698,2]
[353708812,1739995833404,-500.0,0.00013698,2]
[353708814,1739995833414,-500.0,0.00013698,2]
[353708816,1739995833424,-500.0,0.00013698,2]
[353708818,1739995833435,-500.0,0.00013698,2]
[353708820,1739995833446,-500.0,0.00013698,2]
[353708822,1739995833456,-500.0,0.00013698,2]
[353708824,1739995833466,-500.0,0.00013698,2]
[353708826,1739995833475,-500.72402134,0.00013698,2]
[353708828,1739995833485,-500.0,0.00013698,2]
[353708830,1739995833495,-500.0,0.00013698,2]
[353708833,1739995833505,-500.0,0.00013698,2]
[353708835,1739995833515,-500.0,0.00013698,2]
[353708837,1739995833525,-240.06075267,0.00013698,2]
[353708839,1739995833534,-201.55422494,0.00013698,2]
[353708841,1739995833544,-1000.0,0.00013698,2]
[353708843,1739995833554,-362.72293933,0.00013698,2]
[353708845,1739995833564,-500.0,0.00013698,2]
[353708847,1739995833573,-566.49568062,0.00013698,2]
[353708849,1739995833583,-500.0,0.00013698,2]
[353708851,1739995833592,-500.0,0.00013698,2]
[353708853,1739995833602,-500.0,0.00013698,2]
[353708855,1739995833611,-300.0,0.00013698,2]
[353708857,1739995833621,-500.0,0.00013698,2]
[353708859,1739995833630,-500.0,0.00013698,2]
[353708861,1739995833639,-500.0,0.00013698,2]
[353708875,1739995833770,-500.0,0.00013698,2]
[353708878,1739995833790,-500.0,0.00013698,2]
[353708880,1739995833800,-500.0,0.00013698,2]
[353708882,1739995833810,-500.0,0.00013698,2]
[353708884,1739995833820,-500.0,0.00013698,2]
[353708886,1739995833829,-500.0,0.00013698,2]
[353708888,1739995833839,-150.87200808,0.00013698,2]
[353708890,1739995833849,-500.0,0.00013698,2]
[353708892,1739995833859,-500.0,0.00013698,2]
[353708894,1739995833869,-504.09771672,0.00013698,2]
[353708896,1739995833879,-500.0,0.00013698,2]
[353708898,1739995833889,-504.04340888,0.00013698,2]
[353708900,1739995833899,-500.0,0.00013698,2]
[353708902,1739995833913,-500.0,0.00013698,2]
[353708904,1739995833923,-500.0,0.00013698,2]
[353708906,1739995833933,-500.0,0.00013698,2]
[353708908,1739995833943,-500.0,0.00013698,2]
[353708910,1739995833954,-500.0,0.00013698,2]
[353708913,1739995833964,-500.0,0.00013698,2]
[353708915,1739995833974,-500.0,0.00013698,2]
[353708917,1739995833983,-500.0,0.00013698,2]
[353708919,1739995833993,-500.0,0.00013698,2]
[353708921,1739995834002,-500.0,0.00013698,2]
[353708922,1739995834012,-500.0,0.00013698,2]
[353708925,1739995834022,-500.0,0.00013698,2]
[353708927,1739995834033,-501.45752949,0.00013698,2]
[353708929,1739995834043,-500.0,0.00013698,2]
[353708931,1739995834052,-379.03767898,0.00013698,2]
[353708933,1739995834062,-500.0,0.00013698,2]
[353708935,1739995834072,-539.48730989,0.00013698,2]
[353708937,1739995834084,-500.81820295,0.00013698,2]
[353708939,1739995834094,-503.62336403,0.00013698,2]
[353708941,1739995834105,-500.0,0.00013698,2]
[353708943,1739995834115,-500.0,0.00013698,2]
[353708945,1739995834125,-500.0,0.00013698,2]
[353708947,1739995834135,-500.0,0.00013698,2]
[353708949,1739995834145,-500.0,0.00013698,2]
[353708951,1739995834156,-500.0,0.00013698,2]
[353708953,1739995834166,-500.0,0.00013698,2]
[353708955,1739995834177,-200.0,0.00013698,2]
[353708957,1739995834188,-500.0,0.00013698,2]
[353708959,1739995834197,-500.0,0.00013698,2]
[353708961,1739995834207,-500.0,0.00013698,2]
[353708963,1739995834217,-500.0,0.00013698,2]
[353708965,1739995834227,-500.0,0.00013698,2]
[353708967,1739995834236,-500.0,0.00013698,2]
[353708969,1739995834247,-500.0,0.00013698,2]
[353708971,1739995834256,-500.0,0.00013698,2]
[353708973,1739995834266,-332.7219792,0.00013698,2]
[353708975,1739995834275,-500.0,0.00013698,2]
[353708977,1739995834285,-500.0,0.00013698,2]
[353708979,1739995834295,-506.09781745,0.00013698,2]
[353708981,1739995834304,-500.8754972,0.00013698,2]
[353708984,1739995834314,-500.0,0.00013698,2]